Cogmind - Beta 11.1 @@@ ROGUE MODE // 2022.09.19 @ 15:17:41 Player: DuckBoy Result: Destroyed by P-60 Hacker with Shock Rifle Performance ------------- Evolutions (4) 2000 Regions Visited (6) 1200 Robots Destroyed (49) 245 Value Destroyed (1850) 1850 Prototype IDs (4) 80 Alien Tech Used (0) 0 Bonus (545) 545 TOTAL SCORE: 5920 Bonus ------- Follower Combat Kills 45 Entered DSFs 500 Cogmind --------- Core Integrity 0/850 Matter 292/300 Energy 100/100 System Corruption 3% Temperature Cool (0) Movement Core (50) Location -6/Factory Parts ------- > --- POWER (1) -------- (None) > --- PROPULSION (3) --- (None) > --- UTILITY (9) ------ Improved Melee Analysis Suite > --- WEAPON (2) ------- (None) > --- INVENTORY (5) ---- Advanced Signal Interpreter Improved Hacking Suite Authchip [Device] System Restoration Module Peak State ------------ > --- POWER ------------ Light Fission Core > --- PROPULSION ------- Gravmag System Gravmag System Gravmag System > --- UTILITY ---------- Small Storage Unit Advanced Sensor Array Advanced Targeting Computer Hacking Suite Improved Hacking Suite Improved Hacking Suite Improved Hacking Suite System Shield System Shield > --- WEAPON ----------- Magnetic Acceleration Cannon Magnetic Acceleration Cannon > --- INVENTORY -------- Gravmag System Advanced Signal Interpreter Improved Light Armor Plating Improved Hacking Suite Improved Hacking Suite System Shield Authchip [Device] System Restoration Module [Rating: 63] Favorites ----------- Power Light Ion Engine Engine Light Ion Engine Power Core Light Fission Core Propulsion Gravmag System Treads Light Treads Leg Flexi-carbon Leg Wheel Compact Wheel Hover Unit Gravmag System Flight Unit Biomechanical Wings Utility Small Storage Unit Device Advanced Sensor Array Storage Small Storage Unit Processor Advanced Targeting Computer Hackware System Shield Protection Light Armor Plating Weapon Magnetic Acceleration Cannon Energy Gun Precision Beam Rifle Energy Cannon Advanced Beam Cannon Ballistic Gun Assault Rifle Ballistic Cannon Magnetic Acceleration Cannon Build | -11 -10 -9 -8 -7 -7 -6 ------- Run | Scr Mat Mat Mat Fac DSF Fac Slots Evolved 8 | . . 2 2 2 . 2 Power . | . . . . . . . Propulsion 1 | . . 1 . . . . Utility 7 | . . 1 2 2 . 2 Weapon . | . . . . . . . Parts Attached 71 | 6 4 11 . 4 22 24 Power 11 | 1 1 1 . . 2 6 Engine 6 | 1 1 1 . . 1 2 Core 5 | . . . . . 1 4 Reactor . | . . . . . . . Propulsion 15 | 2 . 2 . . 6 5 Treads 1 | . . . . . 1 . Leg 3 | . . . . . 2 1 Wheel 4 | 2 . 2 . . . . Hover 6 | . . . . . 3 3 Flight 1 | . . . . . . 1 Utility 24 | 1 . 2 . 4 7 10 Device 5 | . . . . . 2 3 Storage 3 | 1 . . . 1 . 1 Processor 3 | . . . . . 2 1 Hackware 9 | . . . . 2 3 4 Protection 4 | . . 2 . 1 . 1 Artifact . | . . . . . . . Weapon 21 | 2 3 6 . . 7 3 Energy Gun 7 | 1 2 4 . . . . Energy Cannon 1 | . . 1 . . . . Ballistic Gun 8 | 1 1 1 . . 4 1 Ballistic Cannon 5 | . . . . . 3 2 Launcher . | . . . . . . . Special Weapon . | . . . . . . . Impact Weapon . | . . . . . . . Slashing Weapon . | . . . . . . . Piercing Weapon . | . . . . . . . Special Melee Weapon . | . . . . . . . Unidentified Prototypes 4 | . . 3 . . . 1 Parts Lost 44 | . 4 2 . . 16 22 Power 8 | . 1 1 . . 2 4 Propulsion 10 | . . . . . 5 5 Utility 16 | . . . . . 5 11 Weapon 10 | . 3 1 . . 4 2 Highest Loss Streak 11 | . 2 1 . . 10 11 To Critical Strikes . | . . . . . . . Average Slot Usage (%) 81 | . 79 90 81 91 72 80 Engine 5 | . 11 10 9 7 4 . Core 1 | . . . . . . 4 Leg 1 | . . . . . 5 . Wheel 12 | . 28 28 27 23 4 . Hover 6 | . . . . . 4 13 Device 2 | . . . . . 1 5 Storage 7 | . 14 11 9 6 7 4 Processor 3 | . . . . . 6 5 Hackware 14 | . . . . 15 11 29 Protection 8 | . . 17 18 23 6 2 Energy Gun 4 | . 14 6 9 7 1 . Energy Cannon 2 | . . 4 9 7 2 . Ballistic Gun 4 | . 10 10 . . 6 . Ballistic Cannon 4 | . . . . . 4 9 Naked Turns 30 | . . . . . . 30 Heaviest Build 33 | 12 12 23 22 25 28 33 Greatest Support 42 | 32 32 42 38 38 38 27 Greatest Overweight (x) 4 | . . . . . 3 4 Average Overweight (x) . | . . . . . . . Largest Inventory Capacity 10 | 8 8 8 8 8 8 10 Average Capacity 7 | 7 8 8 8 7 8 7 Most Carried 8 | 1 6 8 7 6 8 8 Average Carried 5 | . 3 6 5 4 6 6 Final Capacity 8 | 8 8 8 8 8 8 5 Final Carried 8 | 1 5 5 6 6 8 4 Class Distribution -------------------- 46% | Mutant 34% | Hacker-Mutant 15% | Wizard-Mutant 3% | Scavenger-Mutant Dominant Class ---------------- Mutant | -10/Materials Mutant | -9/Materials Mutant | -8/Materials Hacker-Mutant | -7/Factory Mutant | -7/DSF Hacker-Mutant | -6/Factory Resources | -11 -10 -9 -8 -7 -7 -6 ----------- Run | Scr Mat Mat Mat Fac DSF Fac Matter Collected 1755 | 216 129 206 10 . 592 602 Remotely . | . . . . . . . Salvage Created 1698 | . 295 520 38 . 464 381 Parts 98 | . 20 29 5 . 25 19 Haulers Intercepted 1 | . . 1 . . . . Recyclers Shooed 1 | . . 1 . . . . Parts Field Recycled . | . . . . . . . Retrieved Matter . | . . . . . . . Parts Self-Destructed . | . . . . . . . Prevented . | . . . . . . . Kills | -11 -10 -9 -8 -7 -7 -6 ------- Run | Scr Mat Mat Mat Fac DSF Fac Combat Hostiles Destroyed 43 | . 7 8 3 . 13 12 Guns 20 | . 7 6 2 . 5 . Cannons 23 | . . 2 1 . 8 12 Classes Destroyed 11 | . 3 4 . . 3 1 Worker 1 | . . 1 . . . . Hauler 1 | . . 1 . . . . Recycler 2 | . 1 1 . . . . Operator 1 | . . . . . . 1 Watcher 1 | . . 1 . . . . Swarmer 9 | . 3 . 3 . 2 1 Grunt 20 | . 4 5 . . 6 5 Sentry 8 | . . 3 . . . 5 Specialist 3 | . . . . . 3 . Programmer 2 | . . . . . 1 1 Heavy 1 | . . . . . 1 . Best Kill Streak 7 | . 3 3 3 . 7 3 Combat Bots Only 7 | . 3 3 3 . 7 3 Max Kills in Single Turn 1 | . 1 1 1 . 1 1 Gunslinging . | . . . . . . . Exploded . | . . . . . . . Melee . | . . . . . . . Uniques/NPCs Destroyed . | . . . . . . . Combat | -11 -10 -9 -8 -7 -7 -6 -------- Run | Scr Mat Mat Mat Fac DSF Fac Damage Taken 5746 | . 468 255 169 . 2265 2589 Core 1696 | . 180 58 42 . 566 850 Absorbed by Shields 71 | . . . . . . 71 Regen/Repaired (Parts) 124 | . . . . 124 . . Core Remaining (%) 64 | 100 28 85 92 . 19 . Volleys Fired 179 | . 42 31 10 . 48 48 Largest 2 | . 2 2 2 . 2 2 Hottest 129 | . 80 124 129 . 129 106 Shots Fired 336 | . 72 58 20 . 96 90 Gun 178 | . 72 55 10 . 39 2 Cannon 158 | . . 3 10 . 57 88 Launcher . | . . . . . . . Special . | . . . . . . . Kinetic 244 | . 25 50 . . 79 90 Thermal 66 | . 21 8 20 . 17 . Explosive . | . . . . . . . Electromagnetic 26 | . 26 . . . . . Robot Hit Streak 21 | . 14 17 21 . 10 13 Robot Miss Streak 5 | . 5 5 2 . 3 3 Penetration Max . | . . . . . . . Secondary Targets 2 | . . 1 . . 1 . Max Gunslinging Chain 1 | . . 1 . . 1 . Shots Hit Robots 227 | . 41 40 12 . 73 61 Core Hits 91 | . 13 21 4 . 29 24 Critical Kills . | . . . . . . . Critical Parts Destroyed 2 | . 1 1 . . . . Critical Strikes 13 | . 2 1 . . 4 6 Destroy 2 | . 1 1 . . . . Blast 10 | . . . . . 4 6 Corrupt 1 | . 1 . . . . . Melee Attacks . | . . . . . . . Impact . | . . . . . . . Slashing . | . . . . . . . Piercing . | . . . . . . . Sneak Attacks . | . . . . . . . Combat Hostiles . | . . . . . . . Follow-up Attacks . | . . . . . . . Damage Inflicted 4902 | . 521 512 222 . 1792 1855 Guns 1778 | . 493 450 121 . 676 38 Cannons 3064 | . . 62 101 . 1116 1785 Explosions 28 | . 28 . . . . . Melee . | . . . . . . . Ramming 32 | . . . . . . 32 Kinetic 3857 | . 127 377 . . 1530 1823 Thermal 808 | . 189 135 222 . 262 . Explosive . | . . . . . . . Electromagnetic 205 | . 205 . . . . . Impact . | . . . . . . . Slashing . | . . . . . . . Piercing . | . . . . . . . Highest Corruption 2 | . . . . . 1 2 Average Corruption 1 | . . . . . 1 1 Corruption Purged . | . . . . . . . Corruption Blocked . | . . . . . . . Effects 1 | . . . . . . 1 Heat Flow Errors 1 | . . . . . . 1 Overload Shots . | . . . . . . . Overflow Damage 35 | . . . 10 . 6 19 Projectiles 35 | . . . 10 . 6 19 Explosions . | . . . . . . . Melee . | . . . . . . . Knockbacks 7 | . . . . . 5 2 Impact 1 | . . . . . . 1 Kinetic 6 | . . . . . 5 1 Secondary . | . . . . . . . Self-Inflicted Damage 39 | . 33 . . . . 6 Shots 1 | . 1 . . . . . Rammed 8 | . . . . . . 8 Targets Rammed 15 | . . . . . . 15 Kicked 7 | . . . . . . 7 Crushed . | . . . . . . . Highest Temperature 563 | . 69 126 339 . 563 294 Average Temperature 90 | . 22 26 157 . 141 88 Received Heat Transfer 1492 | . 174 138 18 . 414 748 Effects 5 | . . . . . 5 . Shutdowns 1 | . . . . . 1 . Damage (minor) 1 | . . . . . 1 . Damage (major) 3 | . . . . . 3 . Siege Activations . | . . . . . . . Robots Corrupted . | . . . . . . . Combat Hostiles . | . . . . . . . Parts Fried . | . . . . . . . Impact Corruptions 1 | . . . . . . 1 Robots Melted . | . . . . . . . Combat Hostiles . | . . . . . . . Parts Melted 1 | . 1 . . . . . Heat Transferred 1659 | . 425 272 444 . 518 . Parts Sabotaged . | . . . . . . . Parts Stolen . | . . . . . . . Parts Stripped . | . . . . . . . Power Chain Reactions 1 | . 1 . . . . . Missiles Intercepted . | . . . . . . . Alert | -11 -10 -9 -8 -7 -7 -6 ------- Run | Scr Mat Mat Mat Fac DSF Fac Peak Influence 280 | . 197 265 112 56 280 276 Initial 147 | . . 83 5 50 39 147 Average 130 | . 122 156 64 51 118 167 Maximum Alert Level 1 | . . 1 . . 1 1 Low Security (%) 80 | 100 100 70 100 100 76 71 Level 1 19 | . . 29 . . 23 28 Level 2 . | . . . . . . . Level 3 . | . . . . . . . Level 4 . | . . . . . . . Level 5 . | . . . . . . . High Security . | . . . . . . . Max Security . | . . . . . . . Sterilizations 1 | . . . . . 1 . Squads Dispatched 15 | . . . 3 . 3 9 Investigation 3 | . . . 2 . . 1 Extermination 1 | . . . . . . 1 Reinforcement 8 | . . . 1 . 3 4 Assault . | . . . . . . . Garrison 3 | . . . . . . 3 Intercept . | . . . . . . . Searches Triggered . | . . . . . . . Construction Impeded . | . . . . . . . Haulers Reinforced . | . . . . . . . Active Scanning Responses . | . . . . . . . Cargo Convoy Interrupts . | . . . . . . . Stealth | -11 -10 -9 -8 -7 -7 -6 --------- Run | Scr Mat Mat Mat Fac DSF Fac Distress Signals 3 | . 1 1 . . . 1 Communications Jammed . | . . . . . . . Distress Signals . | . . . . . . . Times Spotted 80 | . 10 17 6 . 18 29 Peak Tracking Total 7 | . 3 5 4 . 6 7 Tactical Retreats 10 | . 2 . 1 . 2 5 Traps | -11 -10 -9 -8 -7 -7 -6 ------- Run | Scr Mat Mat Mat Fac DSF Fac Traps Triggered 3 | . . . . 1 1 1 Indirectly . | . . . . . . . Trap Hack Attempts . | . . . . . . . Triggered . | . . . . . . . Disarmed . | . . . . . . . Reprogrammed . | . . . . . . . Reused . | . . . . . . . Traps Extracted . | . . . . . . . Installed . | . . . . . . . Triggered . | . . . . . . . Machines | -11 -10 -9 -8 -7 -7 -6 ---------- Run | Scr Mat Mat Mat Fac DSF Fac Machines Disabled 1 | . 1 . . . . . Max in Single Turn 1 | . 1 . . . . . Machines Sabotaged . | . . . . . . . Garrisons Compromised . | . . . . . . . Overloaded Fab Kills . | . . . . . . . Hacking | -11 -10 -9 -8 -7 -7 -6 --------- Run | Scr Mat Mat Mat Fac DSF Fac Machines Accessed 14 | . . 3 2 5 . 4 Terminals 10 | . . 3 1 4 . 2 Fabricators 1 | . . . . . . 1 Repair Stations 1 | . . . . 1 . . Recycling Units . | . . . . . . . Scanalyzers 1 | . . . 1 . . . Garrison Access 1 | . . . . . . 1 Total Hacks 40 | . . 9 12 12 . 7 Successful 24 | . . 2 9 9 . 4 Failed 16 | . . 7 3 3 . 3 Catastrophic 3 | . . 2 1 . . . Database Lockouts . | . . . . . . . Manual 18 | . . 7 4 6 . 1 Terminals 28 | . . 9 4 10 . 5 Fabricators 1 | . . . . . . 1 Repair Stations 2 | . . . . 2 . . Recycling Units . | . . . . . . . Scanalyzers 8 | . . . 8 . . . Garrison Access 1 | . . . . . . 1 Terminal Hacks 7 | . . 1 . 4 . 2 Part Schematic 1 | . . . . 1 . . Open DSF 2 | . . . . 1 . 1 Terminal Index 1 | . . . . 1 . . Fabricator Index 1 | . . . . . . 1 Alert Level 1 | . . . . 1 . . Unreport Threat 1 | . . 1 . . . . Fabricator Hacks 1 | . . . . . . 1 Build 1 | . . . . . . 1 Repair Station Hacks 2 | . . . . 2 . . Scan Component 1 | . . . . 1 . . Repair 1 | . . . . 1 . . Recycling Unit Hacks . | . . . . . . . Scanalyzer 8 | . . . 8 . . . Insert Component 4 | . . . 4 . . . Analyze 4 | . . . 4 . . . Garrison Access Hacks . | . . . . . . . Unauthorized Hacks 6 | . . 1 1 3 . 1 Terminals 5 | . . 1 1 3 . . Botnet 4 | . . 1 1 2 . . Operators 1 | . . . . 1 . . Fabricators . | . . . . . . . Repair Stations . | . . . . . . . Recycling Units . | . . . . . . . Scanalyzers . | . . . . . . . Garrison Access 1 | . . . . . . 1 Reprogram 1 | . . . . . . 1 Data Cores Recovered . | . . . . . . . Used . | . . . . . . . Hacking Detections 10 | . . 3 2 4 . 1 Full Trace Events 2 | . . . 2 . . . Feedback Events . | . . . . . . . Feedback Blocked . | . . . . . . . Robot Schematics Acquired . | . . . . . . . Robots Built 1 | . . . . . . 1 Authchips . | . . . . . . . Time 152 | . . . . . . 152 Total Robot Build Rating 5 | . . . . . . 5 Part Schematics Acquired 5 | . . . 4 1 . . Parts Built . | . . . . . . . Authchips . | . . . . . . . Time . | . . . . . . . Total Part Build Rating . | . . . . . . . Parts Repaired 1 | . . . . 1 . . Time 26 | . . . . 26 . . Parts Recycled . | . . . . . . . Recycled Matter . | . . . . . . . Retrieved Matter . | . . . . . . . Retrieved Components . | . . . . . . . Parts Scanalyzed 4 | . . . 4 . . . Part Schematics Acquired 4 | . . . 4 . . . Parts Damaged 1 | . . . 1 . . . Bothacking | -11 -10 -9 -8 -7 -7 -6 ------------ Run | Scr Mat Mat Mat Fac DSF Fac Used RIF Installer . | . . . . . . . Robots Hacked . | . . . . . . . Non-combat . | . . . . . . . Combat . | . . . . . . . Robot Hacks Applied . | . . . . . . . Relay Couplers Released . | . . . . . . . Fabnet Peak Effective % . | . . . . . . . Robots Rewired . | . . . . . . . Allies Hacked . | . . . . . . . Hacks Repelled . | . . . . . . . Allies | -11 -10 -9 -8 -7 -7 -6 -------- Run | Scr Mat Mat Mat Fac DSF Fac Total Allies 3 | . . . . . . 3 Largest Group 2 | . . . . . . 2 Highest-Rated Group 80 | . . . . . . 80 Highest-Rated Ally 40 | . . . . . . 40 Total Orders . | . . . . . . . Ally Attacks 5 | . . . . . . 5 Total Damage 201 | . . . . . . 201 Kills 2 | . . . . . . 2 Allies Corrupted . | . . . . . . . Allies Melted . | . . . . . . . Intel | -11 -10 -9 -8 -7 -7 -6 ------- Run | Scr Mat Mat Mat Fac DSF Fac Robot Analysis Total . | . . . . . . . Derelict Logs Recovered . | . . . . . . . Drone Launches . | . . . . . . . Drone Recoveries . | . . . . . . . Exploration | -11 -10 -9 -8 -7 -7 -6 ------------- Run | Scr Mat Mat Mat Fac DSF Fac Turns Passed 2833 | 44 248 463 201 312 526 1039 Spaces Moved 2148 | 35 112 341 182 298 260 920 Core 141 | 2 . . . . 3 136 Treads 37 | . . . . . 37 . Legs 120 | . . . . . 86 34 Wheels 997 | 33 112 341 182 298 31 . Hover 853 | . . . . . 103 750 Flight . | . . . . . . . Fastest Speed 50 | 50 100 90 90 90 52 50 Average Speed 91 | 97 100 93 90 90 107 85 Slowest Speed 250 | 100 100 100 90 90 240 250 Overloaded Moves . | . . . . . . . Propulsion Burnouts . | . . . . . . . Robots Hopped . | . . . . . . . Cave-ins Triggered . | . . . . . . . Exploration Rate (%) 27 | 3 21 34 18 8 87 21 Regions Visited 6 Branch Regions . Pre-discovered Areas . | . . . . . . . Known Exits Taken 1 | . . . . 1 . . Unknown Exits Taken 4 | 1 1 1 1 . . . Scrap Searched . | . . . . . . . Spaces Dug . | . . . . . . . Terrain Destroyed 11 | . 2 . . . . 9 Melee . | . . . . . . . Projectile 9 | . . . . . . 9 AOE 2 | . 2 . . . . . Terrain Rammed . | . . . . . . . Walls Destroyed . | . . . . . . . Machines Disabled . | . . . . . . . Actions | -11 -10 -9 -8 -7 -7 -6 --------- Run | Scr Mat Mat Mat Fac DSF Fac Total 2656 | 41 174 431 199 341 407 1063 Wait 162 | . 11 38 5 31 33 44 Move 2142 | 34 111 340 181 297 259 920 Hop . | . . . . . . . Pick Up 36 | 1 5 3 2 3 17 5 Fast Attach 47 | 6 4 9 . 1 13 14 Attach 14 | . . . . 3 6 5 Detach 1 | . . . . . 1 . Swap 10 | . . 2 . . 3 5 Drop 28 | . 1 8 1 . 11 7 Fire 179 | . 42 31 10 . 48 48 Melee . | . . . . . . . Ram 8 | . . . . . . 8 Kick 7 | . . . . . . 7 Crush . | . . . . . . . Escape Stasis 19 | . . . . 6 13 . Rewire 3 | . . . . . 3 . Trap . | . . . . . . . Miscellaneous . | . . . . . . . Route ------- -11/Scrapyard -10/Materials -9/Materials -8/Materials -7/Factory (discovered 4 exits: *Fac / [*Sto] / [*Low] / DSF) -7/DSF -6/Factory History --------- Turn | Location | Event 2 | -11/Scrapyard | Met Revision 17 30 | -11/Scrapyard | Discovered new exit (range 15) 45 | -11/Scrapyard | Entered Materials 220 | -10/Materials | Core integrity fell below 50% 278 | -10/Materials | Discovered new exit (range 15) 293 | -10/Materials | Entered another Materials area 293 | -9/Materials | Evolved 2 slots: Propulsion x1, Utility x1 301 | -9/Materials | Build established: Mutant 735 | -9/Materials | Discovered new exit (range 9) 756 | -9/Materials | Entered another Materials area 756 | -8/Materials | Evolved 2 slots: Utility x2 949 | -8/Materials | Discovered new exit (range 10) 957 | -8/Materials | Entered Factory 957 | -7/Factory | Evolved 2 slots: Utility x2 1072 | -7/Factory | Repaired Sml. Storage Unit 1131 | -7/Factory | Discovered new exit (range 9) 1131 | -7/Factory | Discovered new exit (range 4) 1245 | -7/Factory | Build established: Hacker-Mutant 1266 | -7/Factory | Discovered new exit (range 5) 1269 | -7/Factory | Identified exit to DSF 1269 | -7/Factory | Entered DSF 1318 | -7/DSF | Additional patrols routed to DSF 1463 | -7/DSF | Lost 10 parts (1p3n4u2w) 1631 | -7/DSF | Core integrity fell below 50% 1676 | -7/DSF | Sterilization system engaged 1688 | -7/DSF | Core integrity fell below 20% 1696 | -7/DSF | Ambient heat levels rising (+10) 1711 | -7/DSF | Ambient heat levels rising (+10) 1712 | -7/DSF | Destroyed 7 combat bots 1715 | -7/DSF | Lost 5 parts (1p2n1u1w) 1726 | -7/DSF | Ambient heat levels rising (+10) 1741 | -7/DSF | Ambient heat levels rising (+10) 1756 | -7/DSF | Ambient heat levels rising (+10) 1771 | -7/DSF | Ambient heat levels rising (+10) 1775 | -7/DSF | Discovered new exit (range 14) 1786 | -7/DSF | Ambient heat levels rising (+10) 1795 | -7/DSF | Entered Factory 1795 | -6/Factory | Evolved 2 slots: Utility x2 2487 | -6/Factory | Lost 3 parts (1p2n) 2633 | -6/Factory | Core integrity fell below 50% 2659 | -6/Factory | Lost 11 parts (1p2n6u2w) 2689 | -6/Factory | Fabricated A-15 Conveyor? 2728 | -6/Factory | Released all parts (5) 2814 | -6/Factory | Core integrity fell below 20% 2834 | -6/Factory | Destroyed by P-60 Hacker with Shock Rifle Last Messages --------------- 02728_ Released Hacking Suite. 02728_ Released Adv. Targeting Computer. 02728_ Released Faulty Biomechanical Wings. 02728_ Released Med. Storage Unit. 02728_ Released Fusion Compressor. 02758_ Acquired Angular Momentum Engine. 02767_ Acquired Flexi-carbon Leg. 02773_ Acquired Drone Bay. 02781_ Acquired Imp. Melee Analysis Suite. 02788_ Kicked P-60 Hacker. 02788_ P-60 Hacker knocked back. 02805_ Acquired Force Field. 02821_ Kicked P-60 Hacker. 02822_ Drone Bay destroyed. 02823_ Kicked P-60 Hacker. 02828_ Flexi-carbon Leg destroyed. 02829_ Slammed into P-60 Hacker. 02829_ Angular Momentum Engine destroyed. 02832_ Force Field destroyed. 02832_ Slammed into P-60 Hacker. Map ----- +----------------------------------------------------+ | | | | | | | | | | | | | | | | | | | | | | | | | | | ?????????????#############???????????????????????? | | ?????????????# #???????????????????????? | | ?????????????# """ """ #???????????????????????? | | ?????????????# """ "Y" #???????????????????????? | | ?????????????# """ #???????????????????????? | | ?????????????# "" #???????????????????????? | | #######??????# "" #???????????????????????? | | #??????# ###########?????????????? | | ################+### #?????????????? | | # * #?????????????? | | # #?????????????? | | p# #?????????????? | | @Y #?????????????? | | # #?????????????? | | ############## # #?????????????? | | #????????????# # #?????????????? | | ######????????????# ###########?????????????? | | #?????????????????# #???????????????????????? | | #?????????????????# #???????????????????????? | | #?????????????????# #???????????????????????? | | #?????????????????# #???????????????????????? | | #?????????????????# #???????????????????????? | | #?????????????????# #???????????????????????? | | #?????????????????# #???????????????????????? | | #?????????????????# #???????????????????????? | | #?????????????????? ????????????????????????? | | #???????????????????? ????????????????????????? | | #???????????????????????????????????????????????? | | #???????????????????????????????????????????????? | | #???????????????????????????????????????????????? | | #???????????????????????????????????????????????? | | #???????????????????????????????????????????????? | | ########????????????????????????????????????????? | | + #????????????????????????????????????????? | | # #????????????????????????????????????????? | | # #????????????????????????????????????????? | | + " " #????????????????????????????????????????? | +----------------------------------------------------+ Best States ------------- Heat Dissipation 51 Energy Generation 18 Energy Capacity 300 Matter Stores 300 Matter Capacity 300 Sight Range 16 Robot Scan Range 16 Terrain Scan Density 10 Armor Coverage 450 Evasion (%) 55 Targeting Accuracy 8 Melee Accuracy 6 Target Analysis 5 Recoil Reduction 1 Offensive Hacking 46 Defensive Hacking 30 Authchip Count 1 Item Schematics ----------------- System Shield | -8/Materials | Scanalyzed Hacking Suite | -8/Materials | Scanalyzed Lgt. Ion Engine | -8/Materials | Scanalyzed Com. Wheel | -8/Materials | Scanalyzed Antigrav System | -7/Factory | Hacked Robot Schematics ------------------ None Fabricated ------------ A-15 Conveyor | x1 | -6/Factory | Preloaded Alien Tech Used ----------------- None Achievements -------------- None Challenges ------------ None Game ------ Seed ComponentTeslaArchive Manual? 0 Play Time 01:44:55 Cumulative 115.7 hours Start 2022.09.17 @ 18:05:56 End 2022.09.19 @ 15:17:41 Sessions 5 Manual Loads 0 Difficulty Rogue Special Mode None Game No. 87 Rogue 84 Adventurer 3 Explorer 0 Win Type - Total 1 Types 1/0/0/0/0/0/0/0/0 Lore% 52 Gallery% 50 Achievement% 46 Wizard Run 0 Options --------- ASCII 0 Keyboard 0 Movement Numpad Keybinds 0 Fullscreen 1 Font 18/SmallcapsGlow Map View 76x50 Tactical HUD 1 Map Filters NONE Filters NONE Steam 1 RUN: 3cbc9cfc-cc24-4159-a00a-5d7b58b40b67